fUST/lending_fUST_20250520
["ID","MTS","AMOUNT","RATE_DAILY","PERIOD"]
[361707046,1747710636010,-413.47744586,0.00016438,2]
[361707047,1747710636020,-423.30785478,0.00016438,2]
[361707048,1747710636030,-402.76362662,0.00016438,2]
[361707049,1747710636040,-2088.69,0.00016438,2]
[361707050,1747710636050,-245.53380272,0.00016438,2]
[361707051,1747710636061,-430.0,0.00016438,2]
[361707052,1747710636071,-153.86057168,0.00016438,2]
[361707053,1747710636080,-1481.75,0.00016438,2]
[361707054,1747710636090,-402.98053625,0.00016438,2]
[361707055,1747710636100,-400.0,0.00016438,2]
[361707056,1747710636110,-751.26,0.00016438,2]
[361707057,1747710636124,-413.35456901,0.00016438,2]
[361707058,1747710636135,-505.08805616,0.00016438,2]
[361707059,1747710636147,-430.0,0.00016438,2]
[361707060,1747710636158,-430.0,0.00016438,2]
[361707061,1747710636170,-430.0,0.00016438,2]
[361707062,1747710636180,-504.43308192,0.00016438,2]
[361707063,1747710636190,-430.0,0.00016438,2]
[361707064,1747710636200,-430.0,0.00016438,2]
[361707065,1747710636211,-412.13238112,0.00016438,2]
[361707066,1747710636221,-349.79010808,0.00016438,2]
[361707067,1747710636231,-404.27124873,0.00016438,2]
[361707068,1747710636241,-416.16121203,0.00016438,2]
[361707069,1747710636251,-418.76047146,0.00016438,2]
[361707070,1747710636260,-378.86498278,0.00016438,2]
[361707071,1747710636270,-430.0,0.00016438,2]
[361707072,1747710636279,-430.0,0.00016438,2]
[361707073,1747710636291,-430.0,0.00016438,2]
[361707074,1747710636301,-503.92957676,0.00016438,2]
[361707075,1747710636312,-233.59008386,0.00016438,2]
[361707076,1747710636322,-422.03474226,0.00016438,2]
[361707077,1747710636334,-504.24243056,0.00016438,2]
[361707078,1747710636345,-1114.98,0.00016438,2]
[361707079,1747710636357,-402.07754159,0.00016438,2]
[361707080,1747710636367,-430.0,0.00016438,2]
[361707081,1747710636379,-430.0,0.00016438,2]
[361707082,1747710636389,-418.67533159,0.00016438,2]
[361707083,1747710636400,-430.0,0.00016438,2]
[361707084,1747710636409,-407.40333078,0.00016438,2]
[361707085,1747710636419,-420.82576956,0.00016438,2]
[361707086,1747710636428,-430.0,0.00016438,2]
[361707087,1747710636438,-430.0,0.00016438,2]
[361707088,1747710636448,-430.0,0.00016438,2]
[361707089,1747710636459,-756.32,0.00016438,2]
[361707090,1747710636469,-430.0,0.00016438,2]
[361707091,1747710636479,-414.81091715,0.00016438,2]
[361707092,1747710636491,-696.23,0.00016438,2]
[361707093,1747710636501,-430.0,0.00016438,2]
[361707094,1747710636511,-430.0,0.00016438,2]
[361707095,1747710636521,-407.14143394,0.00016438,2]
[361707096,1747710636531,-151.0,0.00016438,2]
[361707097,1747710636541,-151.0,0.00016438,2]
[361707098,1747710636550,-151.0,0.00016438,2]
[361707099,1747710636562,-151.0,0.00016438,2]
[361707100,1747710636571,-404.61101963,0.00016438,2]
[361707101,1747710636581,-430.0,0.00016438,2]
[361707102,1747710636591,-523.833338,0.00016438,2]
[361707103,1747710636601,-402.19344007,0.00016438,2]
[361707104,1747710636610,-401.4292162,0.00016438,2]
[361707105,1747710636620,-430.0,0.00016438,2]
[361707106,1747710636630,-430.0,0.00016438,2]
[361707107,1747710636639,-430.0,0.00016438,2]
[361707108,1747710636656,-420.25110973,0.00016438,2]
[361707109,1747710636667,-430.0,0.00016438,2]
[361707110,1747710636677,-507.57954447,0.00016438,2]
[361707111,1747710636687,-402.14493753,0.00016438,2]
[361707112,1747710636696,-162.995678,0.00016438,2]
[361707113,1747710636706,-151.0,0.00016438,2]
[361707114,1747710636716,-151.0,0.00016438,2]
[361707115,1747710636727,-151.0,0.00016438,2]
[361707116,1747710636738,-402.93463033,0.00016438,2]
[361707117,1747710636747,-151.0,0.00016438,2]
[361707118,1747710636760,-151.0,0.00016438,2]
[361707119,1747710636770,-430.0,0.00016438,2]
[361707120,1747710636780,-430.0,0.00016438,2]
[361707121,1747710636790,-402.66756444,0.00016438,2]
[361707122,1747710636800,-430.0,0.00016438,2]
[361707123,1747710636810,-509.29,0.00016438,2]
[361707124,1747710636819,-430.0,0.00016438,2]
[361707125,1747710636830,-505.91946705,0.00016438,2]
[361707126,1747710636840,-401.61404697,0.00016438,2]
[361707127,1747710636850,-439.48254998,0.00016438,2]
[361707128,1747710636860,-781.71,0.00016438,2]
[361707129,1747710636872,-416.16293182,0.00016438,2]
[361707130,1747710636881,-430.0,0.00016438,2]
[361707131,1747710636892,-430.0,0.00016438,2]
[361707132,1747710636903,-514.46681035,0.00016438,2]
[361707133,1747710636913,-407.50240879,0.00016438,2]
[361707134,1747710636922,-438.49,0.00016438,2]
[361707135,1747710636932,-409.97121563,0.00016438,2]
[361707136,1747710636941,-402.45464258,0.00016438,2]
[361707137,1747710636950,-430.0,0.00016438,2]
[361707138,1747710636960,-411.64531926,0.00016438,2]
[361707139,1747710636969,-405.85091769,0.00016438,2]
[361707140,1747710636979,-402.21760727,0.00016438,2]
[361707141,1747710636988,-508.00146742,0.00016438,2]
[361707142,1747710636997,-736.59,0.00016438,2]
[361707143,1747710637007,-430.0,0.00016438,2]
[361707144,1747710637016,-430.0,0.00016438,2]
[361707145,1747710637026,-430.0,0.00016438,2]
[361707146,1747710637035,-430.0,0.00016438,2]
[361707147,1747710637044,-1190.16,0.00016438,2]
[361707148,1747710637054,-404.144865,0.00016438,2]
[361707149,1747710637063,-403.9041356,0.00016438,2]
[361707150,1747710637073,-300.0,0.00016438,2]
[361707151,1747710637082,-400.0,0.00016438,2]
[361707152,1747710637092,-430.0,0.00016438,2]
[361707153,1747710637101,-500.0,0.00016438,2]
[361707154,1747710637111,-406.25032102,0.00016438,2]
[361707155,1747710637120,-430.0,0.00016438,2]
[361707156,1747710637129,-400.0,0.00016438,2]
[361707157,1747710637139,-430.0,0.00016438,2]
[361707158,1747710637148,-430.0,0.00016438,2]
[361707159,1747710637158,-662.62,0.00016438,2]
[361707160,1747710637167,-509.24119849,0.00016438,2]
[361707161,1747710637177,-430.0,0.00016438,2]
[361707162,1747710637186,-528.37193157,0.00016438,2]
[361707163,1747710637196,-430.0,0.00016438,2]
[361707164,1747710637206,-400.0,0.00016438,2]
[361707165,1747710637215,-430.0,0.00016438,2]
[361707166,1747710637224,-503.72225799,0.00016438,2]
[361707167,1747710637234,-403.3742455,0.00016438,2]
[361707168,1747710637243,-430.0,0.00016438,2]
[361707169,1747710637253,-430.0,0.00016438,2]
[361707170,1747710637263,-576.52,0.00016438,2]
[361707171,1747710637272,-430.0,0.00016438,2]
[361707172,1747710637282,-511.42904001,0.00016438,2]
[361707173,1747710637292,-430.0,0.00016438,2]
[361707174,1747710637301,-402.08586404,0.00016438,2]
[361707175,1747710637311,-450.0,0.00016438,2]
[361707176,1747710637320,-596.32,0.00016438,2]
[361707177,1747710637330,-411.82724403,0.00016438,2]
[361707178,1747710637339,-430.0,0.00016438,2]
[361707179,1747710637350,-407.8127874,0.00016438,2]
[361707180,1747710637359,-401.76412453,0.00016438,2]
[361707181,1747710637368,-1579.47,0.00016438,2]
[361707183,1747710637379,-151.0,0.00016438,2]
[361707184,1747710637389,-430.0,0.00016438,2]
[361707185,1747710637399,-151.0,0.00016438,2]
[361707187,1747710637409,-450.0,0.00016438,2]
[361707188,1747710637419,-151.0,0.00016438,2]
[361707190,1747710637429,-151.0,0.00016438,2]
[361707192,1747710637439,-430.0,0.00016438,2]
[361707193,1747710637451,-430.0,0.00016438,2]
[361707194,1747710637463,-151.0,0.00016438,2]
[361707195,1747710637474,-505.315503,0.00016438,2]
[361707197,1747710637484,-151.0,0.00016438,2]
[361707198,1747710637495,-151.0,0.00016438,2]
[361707199,1747710637504,-151.0,0.00016438,2]
[361707200,1747710637515,-430.0,0.00016438,2]
[361707201,1747710637525,-462.0,0.00016438,2]
[361707203,1747710637534,-875.63,0.00016438,2]
[361707204,1747710637543,-430.0,0.00016438,2]
[361707206,1747710637553,-664.06,0.00016438,2]
[361707207,1747710637563,-430.0,0.00016438,2]
[361707208,1747710637572,-400.0,0.00016438,2]
[361707209,1747710637582,-400.85672942,0.00016438,2]
[361707211,1747710637593,-3244.41,0.00016438,2]
[361707212,1747710637603,-430.0,0.00016438,2]
[361707213,1747710637613,-503.38510772,0.00016438,2]
[361707214,1747710637624,-409.75943615,0.00016438,2]
[361707215,1747710637635,-151.0,0.00016438,2]
[361707216,1747710637644,-405.47137417,0.00016438,2]
[361707218,1747710637660,-164.640279,0.00016438,2]
[361707220,1747710637670,-430.0,0.00016438,2]
[361707221,1747710637679,-3388.22,0.00016438,2]
[361707222,1747710637689,-402.46885907,0.00016438,2]
[361707224,1747710637699,-513.69654581,0.00016438,2]
[361707225,1747710637711,-450.0,0.00016438,2]
[361707226,1747710637721,-400.98200819,0.00016438,2]
[361707227,1747710637731,-3235.72,0.00016438,2]
[361707228,1747710637743,-714.7,0.00016438,2]
[361707230,1747710637752,-400.0,0.00016438,2]
[361707231,1747710637761,-505.83672708,0.00016438,2]
[361707232,1747710637771,-401.6777489,0.00016438,2]
[361707233,1747710637779,-151.0,0.00016438,2]
[361707234,1747710637789,-151.0,0.00016438,2]
[361707235,1747710637798,-151.0,0.00016438,2]
[361707236,1747710637808,-151.0,0.00016438,2]
[361707237,1747710637818,-611.96,0.00016438,2]
[361707238,1747710637827,-151.0,0.00016438,2]
[361707239,1747710637838,-151.0,0.00016438,2]
[361707240,1747710637848,-151.0,0.00016438,2]
[361707241,1747710637858,-151.0,0.00016438,2]
[361707242,1747710637868,-151.0,0.00016438,2]
[361707243,1747710637877,-151.0,0.00016438,2]
[361707244,1747710637887,-151.0,0.00016438,2]
[361707245,1747710637896,-151.0,0.00016438,2]
[361707246,1747710637907,-508.67721942,0.00016438,2]
[361707247,1747710637916,-151.0,0.00016438,2]
[361707249,1747710637926,-151.0,0.00016438,2]
[361707251,1747710637935,-197.666454,0.00016438,2]
[361707253,1747710637945,-151.0,0.00016438,2]
[361707255,1747710637954,-501.90852557,0.00016438,2]
[361707256,1747710637963,-151.0,0.00016438,2]
[361707257,1747710637973,-151.0,0.00016438,2]
[361707258,1747710637984,-151.0,0.00016438,2]
[361707259,1747710637995,-6780.62,0.00016438,2]
[361707260,1747710638006,-190.278332,0.00016438,2]
[361707261,1747710638152,-174.168478,0.00016438,2]
[361707262,1747710638162,-401.98385365,0.00016438,2]
[361707263,1747710638172,-430.0,0.00016438,2]
[361707264,1747710638182,-407.11313369,0.00016438,2]
[361707265,1747710638193,-430.0,0.00016438,2]
[361707266,1747710638203,-400.0,0.00016438,2]
[361707267,1747710638212,-430.0,0.00016438,2]
[361707268,1747710638221,-620.28461176,0.00016438,2]
[361707269,1747710638230,-503.09995768,0.00016438,2]
[361707270,1747710638240,-430.0,0.00016438,2]
[361707271,1747710638249,-402.43485724,0.00016438,2]
[361707272,1747710638258,-430.0,0.00016438,2]
[361707273,1747710638267,-410.84660584,0.00016438,2]
[361707274,1747710638277,-400.0,0.00016438,2]
[361707275,1747710638287,-430.0,0.00016438,2]
[361707276,1747710638297,-430.0,0.00016438,2]
[361707277,1747710638306,-507.52922009,0.00016438,2]
[361707278,1747710638317,-430.0,0.00016438,2]
[361707279,1747710638327,-430.0,0.00016438,2]
[361707280,1747710638337,-505.25921589,0.00016438,2]
[361707281,1747710638347,-550.34076166,0.00016438,2]
[361707282,1747710638357,-703.78,0.00016438,2]
[361707283,1747710638367,-430.0,0.00016438,2]
[361707284,1747710638378,-502.89974966,0.00016438,2]
[361707285,1747710638388,-1670.44,0.00016438,2]
[361707286,1747710638399,-430.0,0.00016438,2]
[361707287,1747710638411,-403.4372791,0.00016438,2]
[361707288,1747710638421,-403.44102554,0.00016438,2]
[361707289,1747710638430,-408.96197145,0.00016438,2]
[361707290,1747710638439,-430.0,0.00016438,2]
[361707291,1747710638449,-1067.29,0.00016438,2]
[361707292,1747710638458,-400.0,0.00016438,2]
[361707293,1747710638467,-430.0,0.00016438,2]
[361707294,1747710638476,-1505.25,0.00016438,2]
[361707295,1747710638487,-526.62914077,0.00016438,2]
[361707296,1747710638497,-506.77473999,0.00016438,2]
[361707297,1747710638508,-430.0,0.00016438,2]
[361707298,1747710638517,-430.0,0.00016438,2]
[361707299,1747710638527,-430.0,0.00016438,2]
[361707300,1747710638536,-529.99,0.00016438,2]
[361707301,1747710638546,-606.81,0.00016438,2]
[361707302,1747710638557,-1555.29,0.00016438,2]
[361707303,1747710638567,-430.0,0.00016438,2]
[361707304,1747710638576,-518.35528839,0.00016438,2]
[361707305,1747710638587,-402.03844891,0.00016438,2]
[361707306,1747710638597,-450.0,0.00016438,2]
[361707307,1747710638606,-450.0,0.00016438,2]
[361707308,1747710638615,-415.93093669,0.00016438,2]
[361707309,1747710638625,-450.0,0.00016438,2]
[361707310,1747710638634,-2162.53,0.00016438,2]
[361707311,1747710638644,-400.0,0.00016438,2]
[361707312,1747710638659,-1520.2,0.00016438,2]
[361707313,1747710638669,-450.0,0.00016438,2]
[361707314,1747710638678,-430.0,0.00016438,2]
[361707315,1747710638688,-430.0,0.00016438,2]
[361707316,1747710638698,-430.0,0.00016438,2]
[361707317,1747710638707,-405.27924528,0.00016438,2]
[361707318,1747710638717,-504.67926672,0.00016438,2]
[361707319,1747710638726,-430.0,0.00016438,2]
[361707320,1747710638738,-500.0,0.00016438,2]
[361707321,1747710638749,-500.0,0.00016438,2]
[361707322,1747710638759,-500.0,0.00016438,2]
[361707323,1747710638768,-500.0,0.00016438,2]
[361707324,1747710638778,-450.0,0.00016438,2]
[361707325,1747710638788,-500.0,0.00016438,2]
[361707326,1747710638798,-500.0,0.00016438,2]
[361707327,1747710638807,-500.0,0.00016438,2]
[361707328,1747710638818,-500.0,0.00016438,2]
[361707329,1747710638828,-500.0,0.00016438,2]
[361707330,1747710638838,-500.0,0.00016438,2]
[361707331,1747710638848,-278.81751924,0.00016438,2]
[361707332,1747710638859,-430.0,0.00016438,2]
[361707333,1747710638869,-508.52002369,0.00016438,2]
[361707334,1747710638880,-611.61,0.00016438,2]
[361707335,1747710638890,-430.0,0.00016438,2]
[361707336,1747710638899,-2194.91,0.00016438,2]
[361707337,1747710638911,-407.96637653,0.00016438,2]
[361707338,1747710638921,-430.0,0.00016438,2]
[361707339,1747710638930,-450.0,0.00016438,2]
[361707340,1747710638939,-403.41986618,0.00016438,2]
[361707341,1747710638949,-430.0,0.00016438,2]
[361707342,1747710638958,-400.0,0.00016438,2]
[361707343,1747710638967,-430.0,0.00016438,2]
[361707344,1747710638977,-430.0,0.00016438,2]
[361707345,1747710638987,-430.0,0.00016438,2]
[361707346,1747710638996,-1564.51,0.00016438,2]
[361707347,1747710639005,-579.48,0.00016438,2]
[361707348,1747710639015,-400.0,0.00016438,2]
[361707349,1747710639025,-430.0,0.00016438,2]
[361707350,1747710639034,-430.0,0.00016438,2]
[361707351,1747710639043,-430.0,0.00016438,2]
[361707352,1747710639053,-430.0,0.00016438,2]
[361707353,1747710639062,-2426.99,0.00016438,2]
[361707354,1747710639071,-2413.05,0.00016438,2]
[361707355,1747710639081,-690.7,0.00016438,2]
[361707356,1747710639090,-400.0,0.00016438,2]
[361707357,1747710639100,-430.0,0.00016438,2]
[361707358,1747710639109,-430.0,0.00016438,2]
[361707359,1747710639119,-1792.22,0.00016438,2]
[361707360,1747710639129,-430.0,0.00016438,2]
[361707361,1747710639138,-430.0,0.00016438,2]
[361707362,1747710639148,-1034.31,0.00016438,2]
[361707363,1747710639159,-430.0,0.00016438,2]
[361707364,1747710639168,-635.43,0.00016438,2]
[361707365,1747710639178,-430.0,0.00016438,2]
[361707366,1747710639187,-430.0,0.00016438,2]
[361707367,1747710639197,-502.2915531,0.00016438,2]
[361707368,1747710639206,-411.36585607,0.00016438,2]
[361707369,1747710639216,-643.96,0.00016438,2]
[361707370,1747710639226,-430.0,0.00016438,2]
[361707371,1747710639235,-509.75,0.00016438,2]
[361707372,1747710639245,-227.64457282,0.00016438,2]
[361707373,1747710639255,-453.47222805,0.00016438,2]
[361707374,1747710639264,-1518.36,0.00016438,2]
[361707376,1747710639273,-430.0,0.00016438,2]
[361707377,1747710639283,-512.13962802,0.00016438,2]
[361707378,1747710639292,-430.0,0.00016438,2]
[361707379,1747710639301,-430.0,0.00016438,2]
[361707380,1747710639311,-1177.49,0.00016438,2]
[361707382,1747710639321,-400.0,0.00016438,2]
[361707384,1747710639331,-506.22503812,0.00016438,2]
[361707386,1747710639340,-430.0,0.00016438,2]
[361707388,1747710639350,-430.0,0.00016438,2]
[361707390,1747710639359,-400.0,0.00016438,2]
[361707392,1747710639370,-430.0,0.00016438,2]
[361707394,1747710639380,-4645.69,0.00016438,2]
[361707396,1747710639389,-430.0,0.00016438,2]
[361707398,1747710639400,-430.0,0.00016438,2]
[361707400,1747710639410,-921.72,0.00016438,2]
[361707402,1747710639420,-430.0,0.00016438,2]
[361707406,1747710639431,-1477.02,0.00016438,2]
[361707409,1747710639440,-513.2,0.00016438,2]
[361707412,1747710639450,-419.05052355,0.00016438,2]
[361707415,1747710639459,-151.0,0.00016438,2]
[361707463,1747710639680,-151.0,0.00016438,2]
[361707466,1747710639691,-151.0,0.00016438,2]
[361707468,1747710639701,-151.0,0.00016438,2]
[361707471,1747710639710,-408.58506264,0.00016438,2]
[361707474,1747710639720,-151.0,0.00016438,2]
[361707477,1747710639732,-151.0,0.00016438,2]
[361707481,1747710639742,-1978.28,0.00016438,2]
[361707484,1747710639751,-4163.77,0.00016438,2]
[361707488,1747710639761,-805.64,0.00016438,2]
[361707492,1747710639770,-926.85,0.00016438,2]
[361707496,1747710639780,-151.0,0.00016438,2]
[361707500,1747710639790,-151.0,0.00016438,2]
[361707503,1747710639800,-268.098178,0.00016438,2]
[361707508,1747710639811,-430.0,0.00016438,2]
[361707510,1747710639821,-151.0,0.00016438,2]
[361707513,1747710639830,-430.0,0.00016438,2]
[361707516,1747710639840,-151.0,0.00016438,2]
[361707519,1747710639849,-430.0,0.00016438,2]
[361707522,1747710639859,-151.0,0.00016438,2]
[361707525,1747710639868,-1103.09,0.00016438,2]
[361707529,1747710639878,-430.0,0.00016438,2]
[361707532,1747710639887,-151.0,0.00016438,2]
[361707535,1747710639896,-151.0,0.00016438,2]
[361707538,1747710639907,-430.0,0.00016438,2]
[361707540,1747710639916,-2062.65,0.00016438,2]
[361707542,1747710639925,-151.0,0.00016438,2]
[361707544,1747710639934,-151.0,0.00016438,2]
[361707546,1747710639945,-400.0,0.00016438,2]
[361707548,1747710639955,-409.38812583,0.00016438,2]
[361707550,1747710639964,-724.86,0.00016438,2]
[361707552,1747710639974,-404.55199603,0.00016438,2]
[361707554,1747710639983,-430.0,0.00016438,2]
[361707556,1747710639993,-404.14904589,0.00016438,2]
[361707558,1747710640002,-151.0,0.00016438,2]
[361707560,1747710640011,-152.801099,0.00016438,2]
[361707561,1747710640021,-2843.34,0.00016438,2]
[361707562,1747710640030,-430.92896836,0.00016438,2]
[361707563,1747710640041,-582.55,0.00016438,2]
[361707565,1747710640051,-430.0,0.00016438,2]
[361707566,1747710640061,-430.0,0.00016438,2]
[361707569,1747710640071,-430.0,0.00016438,2]
[361707570,1747710640081,-8083.77,0.00016438,2]
[361707573,1747710640093,-430.0,0.00016438,2]
[361707574,1747710640103,-11196.81,0.00016438,2]
[361707575,1747710640113,-413.17226967,0.00016438,2]
[361707576,1747710640124,-3516.03,0.00016438,2]
[361707577,1747710640134,-430.0,0.00016438,2]
[361707578,1747710640144,-400.0,0.00016438,2]
[361707579,1747710640157,-1322.74,0.00016438,2]
[361707580,1747710640166,-639.7,0.00016438,2]
[361707581,1747710640176,-430.0,0.00016438,2]
[361707582,1747710640186,-400.0,0.00016438,2]
[361707583,1747710640196,-430.0,0.00016438,2]
[361707584,1747710640205,-1348.89,0.00016438,2]
[361707585,1747710640214,-430.0,0.00016438,2]
[361707586,1747710640224,-519.3510958,0.00016438,2]
[361707587,1747710640234,-335.1560183,0.00016438,2]
[361707588,1747710640243,-2142.66,0.00016438,2]
[361707589,1747710640253,-400.0,0.00016438,2]
[361707590,1747710640262,-923.11,0.00016438,2]
[361707591,1747710640272,-10711.75,0.00016438,2]
[361707592,1747710640282,-2838.42,0.00016438,2]
[361707593,1747710640292,-430.0,0.00016438,2]
[361707594,1747710640302,-430.0,0.00016438,2]
[361707595,1747710640311,-400.0,0.00016438,2]
[361707596,1747710640321,-400.0,0.00016438,2]
[361707597,1747710640330,-430.0,0.00016438,2]
[361707598,1747710640339,-251.227903,0.00016438,2]
[361707599,1747710640349,-430.0,0.00016438,2]
[361707600,1747710640358,-430.0,0.00016438,2]
[361707601,1747710640367,-430.0,0.00016438,2]
[361707602,1747710640377,-405.13409212,0.00016438,2]
[361707603,1747710640386,-530.71,0.00016438,2]
[361707604,1747710640396,-1771.52,0.00016438,2]
[361707605,1747710640412,-430.0,0.00016438,2]
[361707606,1747710640422,-631.97,0.00016438,2]
[361707607,1747710640431,-400.0,0.00016438,2]
[361707608,1747710640441,-505.55998401,0.00016438,2]
[361707609,1747710640450,-400.0,0.00016438,2]
[361707610,1747710640460,-430.0,0.00016438,2]
[361707611,1747710640469,-400.0,0.00016438,2]
[361707612,1747710640479,-1138.14,0.00016438,2]
[361707613,1747710640488,-5642.06,0.00016438,2]
[361707614,1747710640498,-1299.58,0.00016438,2]
[361707615,1747710640507,-430.0,0.00016438,2]
[361707616,1747710640516,-1501.53,0.00016438,2]
[361707617,1747710640526,-430.0,0.00016438,2]
[361707618,1747710640535,-188.0,0.00016438,2]
[361707619,1747710640544,-430.0,0.00016438,2]
[361707620,1747710640553,-690.17,0.00016438,2]
[361707621,1747710640564,-430.0,0.00016438,2]
[361707622,1747710640574,-430.0,0.00016438,2]
[361707623,1747710640585,-430.0,0.00016438,2]
[361707624,1747710640595,-811.44,0.00016438,2]
[361707625,1747710640606,-1920.92,0.00016438,2]
[361707626,1747710640616,-512.49894053,0.00016438,2]
[361707627,1747710640626,-408.27688063,0.00016438,2]
[361707628,1747710640637,-430.0,0.00016438,2]
[361707629,1747710640651,-2319.86,0.00016438,2]
[361707630,1747710640664,-2181.65,0.00016438,2]
[361707631,1747710640673,-1016.03,0.00016438,2]
[361707632,1747710640683,-430.0,0.00016438,2]
[361707633,1747710640839,-2263.94,0.00016438,2]
[361707634,1747710640849,-2130.7,0.00016438,2]
[361707635,1747710640859,-424.18148356,0.00016438,2]
[361707636,1747710640869,-400.0,0.00016438,2]
[361707637,1747710640878,-430.0,0.00016438,2]
[361707638,1747710640887,-515.85,0.00016438,2]
[361707639,1747710640897,-490.68,0.00016438,2]
[361707640,1747710640909,-486.92826546,0.0001644,2]
[361707641,1747710640919,-1156.76592059,0.00016475,2]
[361707642,1747710640929,-1156.76592059,0.00016544,2]
[361707643,1747710640938,-1156.76592059,0.00016612,2]
[361707644,1747710640948,-151.0,0.000167,2]
[361707645,1747710640958,-151.0,0.000167,2]
[361707646,1747710640967,-1415.40209047,0.00016712,3]
[361707647,1747710640977,-60187.62276462,0.00016712,2]
[361707648,1747710640986,-151.0,0.00016712,2]
[361707649,1747710640996,-280.811684,0.00016712,2]
[361707650,1747710641006,-280.811684,0.00016712,2]
[361707651,1747710641015,-430.0,0.00016712,2]
[361707652,1747710641025,-151.0,0.00016712,2]
[361707653,1747710641034,-151.615986,0.00016712,2]
[361707654,1747710641044,-430.0,0.00016712,2]
[361707655,1747710641054,-430.0,0.00016712,2]
[361707656,1747710641063,-430.0,0.00016712,2]
[361707657,1747710641073,-438.48,0.00016712,2]
[361707658,1747710641082,-430.0,0.00016712,2]
[361707659,1747710641092,-641.35,0.00016712,2]
[361707660,1747710641101,-285.9579736,0.00016712,2]
[361707661,1747710641111,-430.0,0.00016712,2]
[361707662,1747710641120,-950.65,0.00016712,2]
[361707663,1747710641130,-516.13,0.00016712,2]
[361707664,1747710641139,-430.0,0.00016712,2]
[361707665,1747710641149,-151.0,0.00016712,2]
[361707666,1747710641161,-151.0,0.00016712,2]
[361707667,1747710641170,-430.0,0.00016712,2]
[361707668,1747710641180,-151.0,0.00016712,2]
[361707669,1747710641190,-203.030332,0.00016712,2]
[361707670,1747710641199,-430.0,0.00016712,2]
[361707671,1747710641208,-430.0,0.00016712,2]
[361707672,1747710641218,-430.0,0.00016712,2]
[361707673,1747710641227,-430.0,0.00016712,2]
[361707674,1747710641238,-430.0,0.00016712,2]
[361707675,1747710641248,-470.0,0.00016712,2]
[361707676,1747710641259,-430.0,0.00016712,2]
[361707677,1747710641268,-430.0,0.00016712,2]
[361707678,1747710641278,-447.57,0.00016712,2]
[361707679,1747710641288,-483.17,0.00016712,2]
[361707680,1747710641297,-212.972617,0.00016712,2]
[361707681,1747710641307,-212.972617,0.00016712,2]
[361707682,1747710641316,-212.972617,0.00016712,2]
[361707683,1747710641327,-212.972617,0.00016712,2]
[361707684,1747710641336,-212.972617,0.00016712,2]
[361707685,1747710641346,-212.972617,0.00016712,2]
[361707686,1747710641355,-212.972617,0.00016712,2]
[361707687,1747710641366,-212.972617,0.00016712,2]
[361707688,1747710641375,-212.972617,0.00016712,2]
[361707689,1747710641385,-212.972617,0.00016712,2]
[361707690,1747710641395,-430.0,0.00016712,2]
[361707691,1747710641407,-605.62,0.00016712,2]
[361707692,1747710641417,-430.0,0.00016712,2]
[361707693,1747710641426,-982.34,0.00016712,2]
[361707694,1747710641435,-430.0,0.00016712,2]
[361707695,1747710641444,-678.03,0.00016712,2]
[361707696,1747710641453,-560.25,0.00016712,2]
[361707697,1747710641463,-151.0,0.00016712,2]